lending/lending_fUSD_20260209
["ID","MTS","AMOUNT","RATE_DAILY","PERIOD"]
[404897286,1770660652907,-500.0,0.00044356,120]
[404897287,1770660652917,-272.19397784,0.00044356,120]
[404897288,1770660652928,-500.0,0.00044356,120]
[404897289,1770660652938,-500.0,0.00044356,120]
[404897290,1770660652950,-500.0,0.00044356,120]
[404897291,1770660652961,-500.0,0.00044356,120]
[404897292,1770660652972,-500.0,0.00044356,120]
[404897293,1770660652983,-500.0,0.00044356,120]
[404897294,1770660652993,-500.0,0.00044356,120]
[404897295,1770660653004,-500.0,0.00044356,120]
[404897296,1770660653014,-500.0,0.00044356,120]
[404897297,1770660653025,-539.57611258,0.00044356,120]
[404897298,1770660653036,-500.0,0.00044356,120]
[404897299,1770660653046,-500.0,0.00044356,120]
[404897300,1770660653056,-500.0,0.00044356,120]
[404897301,1770660653067,-500.0,0.00044356,120]
[404897302,1770660653077,-237.86029244,0.00044356,120]
[404897303,1770660653087,-500.0,0.00044356,120]
[404897304,1770660653097,-500.0,0.00044356,120]
[404897305,1770660653107,-2359.03,0.00044356,120]
[404897306,1770660653120,-2359.03,0.00044356,120]
[404897307,1770660653130,-2359.03,0.00044356,120]
[404897308,1770660653141,-2359.03,0.00044356,120]
[404897309,1770660653152,-2359.03,0.00044356,120]
[404897310,1770660653163,-2359.03,0.00044356,120]
[404897311,1770660653174,-2359.03,0.00044356,120]
[404897312,1770660653186,-2359.03,0.00044356,120]
[404897313,1770660653200,-2359.03,0.00044356,120]
[404897314,1770660653210,-2359.03,0.00044356,120]
[404897315,1770660653221,-2359.03,0.00044356,120]
[404897316,1770660653232,-2359.03,0.00044356,120]
[404897317,1770660653243,-2359.03,0.00044356,120]
[404897318,1770660653255,-2359.03,0.00044356,120]
[404897319,1770660653266,-2359.03,0.00044356,120]
[404897320,1770660653278,-2359.03,0.00044356,120]
[404897321,1770660653289,-2359.03,0.00044356,120]
[404897322,1770660653299,-2359.03,0.00044356,120]
[404897323,1770660653310,-2359.03,0.00044356,120]
[404897324,1770660653321,-2359.03,0.00044356,120]
[404897325,1770660653331,-2359.03,0.00044356,120]
[404897326,1770660653342,-2359.03,0.00044356,120]
[404897327,1770660653352,-2359.03,0.00044356,120]
[404897328,1770660653363,-2359.13,0.00044356,120]
[404897329,1770660653375,-500.0,0.00044356,120]
[404897330,1770660653386,-500.0,0.00044356,120]
[404897331,1770660653396,-500.0,0.00044356,120]
[404897332,1770660653408,-500.0,0.00044356,120]
[404897333,1770660653418,-500.0,0.00044356,120]
[404897334,1770660653428,-500.0,0.00044356,120]
[404897335,1770660653439,-500.0,0.00044356,120]
[404897336,1770660653449,-500.0,0.00044356,120]
[404897337,1770660653459,-564.92876416,0.00044356,120]
[404897338,1770660653469,-228.87990991,0.00044356,120]
[404897339,1770660653480,-500.0,0.00044356,120]
[404897340,1770660653490,-300.0,0.00044356,120]
[404897341,1770660653501,-757.0,0.00044367,60]
[404897342,1770660653790,-401.0,0.00044367,60]
[404897343,1770660653809,-757.0,0.00044367,60]
[404897344,1770660653820,-757.0,0.00044367,60]
[404897345,1770660653831,-757.0,0.00044367,60]
[404897346,1770660653840,-757.0,0.00044367,60]
[404897347,1770660653850,-757.0,0.00044367,60]
[404897348,1770660653860,-757.0,0.00044367,60]
[404897349,1770660653870,-757.0,0.00044367,60]
[404897350,1770660653879,-757.0,0.00044367,60]
[404897351,1770660653889,-757.0,0.00044367,60]
[404897352,1770660653898,-757.0,0.00044367,60]
[404897353,1770660653908,-757.0,0.00044367,60]
[404897354,1770660653918,-757.0,0.00044367,60]
[404897355,1770660653928,-757.0,0.00044367,60]
[404897356,1770660653937,-150.0,0.00044373,10]
[404897357,1770660653947,-150.0,0.00044373,7]
[404897358,1770660653957,-222.01790711,0.00044393,120]
[404897359,1770660653966,-17675.095,0.000444,120]
[404897360,1770660653976,-17675.09,0.000444,120]
[404897361,1770660653985,-34135.0,0.00044415,30]
[404897362,1770660653995,-150.0,0.00044438,2]
[404897363,1770660654005,-500.0,0.0004447,3]
[404897364,1770660654015,-300.0,0.00044473,5]
[404897365,1770660654024,-189.69324581,0.00044507,30]
[404897366,1770660654034,-1000.0,0.00044521,10]
[404897367,1770660654043,-1000.0,0.00044521,10]
[404897368,1770660654053,-1000.0,0.00044521,10]
[404897369,1770660654063,-310.2015167,0.00044521,10]
[404897370,1770660654072,-1000.0,0.00044521,10]
[404897371,1770660654082,-512.98653158,0.00044521,3]
[404897372,1770660654091,-1000.0,0.00044521,10]
[404897373,1770660654101,-1000.0,0.00044521,10]
[404897374,1770660654110,-1001.20147665,0.00044521,5]
[404897375,1770660654120,-1000.0,0.00044521,10]
[404897376,1770660654129,-1000.0,0.00044521,10]
[404897377,1770660654139,-1000.0,0.00044521,10]
[404897378,1770660654148,-1000.0,0.00044521,10]
[404897379,1770660654159,-562.08952077,0.00044521,10]
[404897380,1770660654169,-1000.0,0.00044521,10]
[404897381,1770660654179,-1000.0,0.00044521,10]
[404897382,1770660654190,-1000.0,0.00044521,10]
[404897383,1770660654199,-1000.0,0.00044521,10]
[404897384,1770660654210,-1000.0,0.00044521,10]
[404897385,1770660654219,-743.15006395,0.00044521,10]
[404897386,1770660654229,-1000.0,0.00044521,10]
[404897387,1770660654239,-1000.0,0.00044521,10]
[404897388,1770660654249,-1000.0,0.00044521,10]
[404897389,1770660654269,-1000.0,0.00044521,10]
[404897390,1770660654280,-700.43900168,0.00044521,10]
[404897391,1770660654291,-773.06231668,0.00044521,10]
[404897392,1770660654301,-1000.0,0.00044521,10]
[404897393,1770660654311,-1000.0,0.00044521,10]
[404897394,1770660654321,-1000.0,0.00044521,10]
[404897395,1770660654331,-1000.0,0.00044521,10]
[404897396,1770660654340,-504.51782851,0.00044521,10]
[404897397,1770660654350,-1000.0,0.00044521,10]
[404897398,1770660654361,-1000.0,0.00044521,10]
[404897399,1770660654371,-1000.0,0.00044521,10]
[404897400,1770660654381,-1000.0,0.00044521,10]
[404897401,1770660654391,-1000.0,0.00044521,10]
[404897402,1770660654401,-1000.0,0.00044521,10]
[404897403,1770660654410,-1000.0,0.00044521,10]
[404897404,1770660654420,-263.01481468,0.00044521,5]
[404897405,1770660654429,-1000.0,0.00044521,10]
[404897406,1770660654440,-150.0,0.00044547,120]
[404897407,1770660654450,-150.0,0.000446,75]
[404897408,1770660654460,-549.96992372,0.00044607,2]
[404897409,1770660654470,-266.49852395,0.00044607,30]
[404897410,1770660654480,-150.29839688,0.0004461,16]
[404897411,1770660654490,-150.0,0.00044614,30]
[404897412,1770660654500,-151.0,0.00044647,120]
[404897413,1770660654510,-453128.00090894,0.0004465,120]
[404897414,1770660654521,-150.0,0.00044658,120]
[404897415,1770660654532,-151.0,0.00044704,120]
[404897416,1770660654543,-50000.0,0.00044706,46]
[404897417,1770660654552,-50000.0,0.00044706,48]
[404897418,1770660654562,-50000.0,0.00044706,52]
[404897419,1770660654572,-151.0,0.00044707,120]
[404897420,1770660654582,-175.892067,0.00044707,120]
[404897421,1770660654593,-175.892067,0.00044707,120]
[404897422,1770660654603,-175.892067,0.00044707,120]
[404897423,1770660654613,-175.892067,0.00044707,120]
[404897424,1770660654623,-159.83694,0.00044707,120]
[404897425,1770660654634,-223.0315306,0.00044707,45]
[404897426,1770660654644,-151.0,0.00044707,120]
[404897427,1770660654654,-151.0,0.00044707,120]
[404897428,1770660654664,-151.0,0.00044707,120]
[404897429,1770660654674,-151.0,0.00044707,120]
[404897430,1770660654684,-151.0,0.00044707,120]
[404897431,1770660654695,-151.0,0.00044707,120]
[404897432,1770660654705,-246.47727,0.00044707,120]
[404897433,1770660654714,-264.000551,0.00044707,120]
[404897434,1770660654723,-264.000551,0.00044707,120]
[404897435,1770660654733,-264.000551,0.00044707,120]
[404897436,1770660654743,-264.000551,0.00044707,120]
[404897437,1770660654753,-264.000551,0.00044707,120]
[404897438,1770660654763,-264.000551,0.00044707,120]
[404897439,1770660654773,-264.000551,0.00044707,120]
[404897440,1770660654783,-264.000551,0.00044707,120]
[404897441,1770660654797,-151.0,0.00044707,120]
[404897442,1770660654808,-151.0,0.00044707,120]
[404897443,1770660654818,-151.0,0.00044707,120]
[404897444,1770660654828,-151.0,0.00044707,120]
[404897445,1770660654839,-1101.854,0.00044707,120]
[404897446,1770660654849,-1101.854,0.00044707,120]
[404897447,1770660654860,-1101.854,0.00044707,120]
[404897448,1770660654871,-1101.854,0.00044707,120]
[404897449,1770660654881,-1101.854,0.00044707,120]
[404897450,1770660654890,-1101.854,0.00044707,120]
[404897451,1770660654900,-1101.854,0.00044707,120]
[404897452,1770660654909,-1101.854,0.00044707,120]
[404897453,1770660654919,-156.951988,0.00044707,120]
[404897454,1770660654929,-156.951988,0.00044707,120]
[404897455,1770660654938,-156.951988,0.00044707,120]
[404897456,1770660654948,-156.951988,0.00044707,120]
[404897457,1770660654958,-156.951988,0.00044707,120]
[404897458,1770660654968,-156.951988,0.00044707,120]
[404897459,1770660654977,-156.951988,0.00044707,120]
[404897460,1770660654986,-156.951996,0.00044707,120]
[404897461,1770660654996,-151.0,0.00044707,120]
[404897462,1770660655006,-151.0,0.00044707,120]
[404897463,1770660655021,-151.0,0.00044707,120]
[404897464,1770660655031,-314.73038,0.00044707,7]
[404897465,1770660655041,-151.0,0.00044707,120]
[404897466,1770660655050,-314.73038,0.00044707,7]
[404897467,1770660655060,-314.73038,0.00044707,7]
[404897468,1770660655069,-314.73038,0.00044707,7]
[404897469,1770660655079,-314.73038,0.00044707,7]
[404897470,1770660655088,-314.73038,0.00044707,7]
[404897471,1770660655098,-314.73038,0.00044707,7]
[404897472,1770660655108,-314.730388,0.00044707,7]
[404897473,1770660655118,-1723.918671,0.00044707,7]
[404897474,1770660655131,-1723.918671,0.00044707,7]
[404897475,1770660655140,-51023.82669267,0.00044707,52]
[404897476,1770660655150,-2103483.8740576,0.00044707,10]
[404897477,1770660655259,-4469.34245051,0.00044707,10]
[404897478,1770660655271,-1221.74818577,0.00044707,10]
[404897479,1770660655391,-197.31,0.00016844,2]
[404897480,1770660655412,-197.31,0.0001778,2]
[404897481,1770660655422,-305.51929545,0.00017808,2]
[404897482,1770660655431,-197.31,0.00018716,2]
[404897483,1770660655441,-197.31,0.00019652,2]
[404897484,1770660655451,-2448.0,0.00026965,2]
[404897485,1770660655461,-2448.0,0.00029965,2]
[404897486,1770660655471,-2448.0,0.00032965,2]
[404897487,1770660655481,-2271.10137504,0.00035965,2]
[404897488,1770660655501,-172.89862496,0.00035965,2]
[404897489,1770660655510,-92.6008748,0.00039726,7]
[404897490,1770660655671,-1007.67035174,0.00031253,2]
[404897491,1770660655681,-150.0,0.00035335,2]
[404897492,1770660655691,-150.0,0.00035402,2]
[404897493,1770660655702,-150.0,0.00035437,2]
[404897494,1770660655712,-150.0,0.0003545,2]
[404897495,1770660655722,-150.0,0.00035452,2]
[404897496,1770660655731,-110.41450026,0.00035477,2]
[404897497,1770660655923,-883.75246884,0.00017125,2]
[404897498,1770660656087,-267.4,0.00017125,2]
[404897499,1770660656104,-2181.39506279,0.00017125,2]
[404897500,1770660656114,-3190.11042138,0.00017125,2]
[404897501,1770660656124,-39.58549974,0.00035477,2]
[404897502,1770660656134,-1654.98146918,0.0003551,2]
[404897503,1770660656146,-637.06591498,0.0003551,2]
[404897504,1770660659987,1000.0,0.00016546,2]
[404897505,1770660666559,600.0,0.00029661,120]
[404897506,1770660666651,600.0,0.00028465,120]
[404897507,1770660666702,600.0,0.00032183,120]
[404897508,1770660666834,239.21112212,0.00032183,120]
[404897510,1770660667738,283.92443747,0.00029661,30]
[404897512,1770660669107,1000.0,0.00017387,2]
[404897513,1770660669391,1000.0,0.00017387,2]
[404897514,1770660669701,1000.0,0.00017387,2]
[404897515,1770660669965,1000.0,0.00017387,2]
[404897516,1770660670519,300.0,0.00029661,120]
[404897517,1770660670662,292.47430096,0.00028465,120]
[404897519,1770660675808,300.0,0.0002594,30]
[404897520,1770660675947,300.0,0.00025273,30]
[404897521,1770660678556,2500.0,0.00016559,2]
[404897522,1770660725761,360.78887788,0.0002594,120]
[404897523,1770660726107,500.0,0.00016644,2]
[404897524,1770660726344,257.1490003,0.00016644,2]
[404897529,1770660787537,10000.01,7.945e-05,2]
[404897530,1770660787563,10000.01,7.945e-05,2]
[404897531,1770660787586,5399.1,7.945e-05,2]
[404897532,1770660801511,10838.19,0.00035547,30]
[404897534,1770660901186,1200.0,0.00017898,2]
[404897536,1770660903730,500.0,0.00017,2]
[404897537,1770660934245,500.0,0.00017799,2]
[404897538,1770660949899,291.26,0.00030405,120]
[404897539,1770660950318,291.26,0.00034206,120]
[404897540,1770660959197,378.636441,0.00017809,2]
[404897541,1770660960090,7421.373559,0.00017799,2]
[404897542,1770660960115,10000.01,0.00017799,2]
[404897543,1770660960144,10000.01,0.00017799,2]
[404897544,1770660960170,10000.01,0.00017799,2]
[404897545,1770660960196,10000.01,0.00017799,2]
[404897546,1770660960223,10000.01,0.00017799,2]
[404897547,1770660960248,10000.01,0.00017799,2]
[404897548,1770660960273,10000.01,0.00017799,2]
[404897550,1770660969790,-8669.07203701,0.00017799,2]
[404897551,1770660969917,-10000.01,0.00017799,2]
[404897552,1770660970041,-10000.01,0.00017799,2]
[404897553,1770660970160,-10000.01,0.00017799,2]
[404897554,1770660970292,-10000.01,0.00017799,2]
[404897555,1770660991498,500.0,0.00017798,2]
[404897556,1770660991593,326.40723295,0.00017798,2]
[404897557,1770660991629,564.66501134,0.00017798,2]
[404897558,1770660992264,335.89011726,0.00017724,2]
[404897559,1770660993341,500.0,0.00017798,2]
[404897560,1770660993374,500.0,0.00017798,2]
[404897561,1770660993408,500.0,0.00017798,2]
[404897562,1770660993443,500.0,0.00017798,2]
[404897563,1770660993482,500.0,0.00017798,2]
[404897564,1770660993515,500.0,0.00017798,2]
[404897565,1770660993548,273.04763845,0.00017798,2]
[404897566,1770660993570,226.95236155,0.00017798,2]
[404897567,1770660993600,500.0,0.00017798,2]
[404897568,1770660993661,500.0,0.00017798,2]
[404897569,1770660993703,500.0,0.00017798,2]
[404897570,1770660993759,500.0,0.00017798,2]
[404897571,1770660993824,500.0,0.00017798,2]
[404897572,1770660993864,289.52314587,0.00017798,2]
[404897573,1770660993921,500.0,0.00017798,2]
[404897574,1770660993977,500.0,0.00017798,2]
[404897575,1770660999247,5000.01,0.00017789,2]
[404897576,1770660999268,831.23784108,0.00017789,2]
[404897577,1770661014084,500.0,0.00017798,2]
[404897578,1770661014130,500.0,0.00017798,2]
[404897579,1770661014166,500.0,0.00017798,2]
[404897580,1770661014197,289.52314587,0.00017798,2]
[404897581,1770661014232,500.0,0.00017798,2]
[404897582,1770661021217,300.0,0.00017798,2]
[404897587,1770661041112,318.90677005,0.00017708,2]
[404897588,1770661050030,1000.5,0.00035616,30]
[404897589,1770661050058,1260.342243,0.00017799,2]
[404897590,1770661050079,401.657757,0.00017799,2]
[404897591,1770661063121,244.68202109,0.00017724,2]
[404897592,1770661070142,1662.0,0.00017632,2]
[404897593,1770661070640,907.60579378,0.00017724,2]
[404897594,1770661077882,1662.0,0.00017444,2]
[404897595,1770661081781,122.06442813,0.00017798,2]
[404897596,1770661081804,427.93557187,0.00017798,2]
[404897597,1770661082970,300.0,0.00017798,2]
[404897598,1770661086068,234.87,0.000174,2]
[404897599,1770661086966,366.64661582,0.00017699,2]
[404897600,1770661088570,2316.29161319,0.00017699,2]
[404897601,1770661090250,500.0,0.00017699,2]
[404897602,1770661090279,854.26619912,0.00017331,2]
[404897603,1770661090300,807.73380088,0.00017331,2]
[404897604,1770661101864,1662.0,0.00017421,2]
[404897605,1770661102965,1427.61032238,0.00017699,2]
[404897606,1770661105596,1102.66587674,0.00017608,2]
[404897607,1770661105619,559.33412326,0.00017608,2]
[404897608,1770661107882,1200.0,0.00017798,2]
[404897609,1770661111223,500.0,0.00017798,2]
[404897610,1770661111253,500.0,0.00017798,2]
[404897611,1770661111285,500.0,0.00017798,2]
[404897612,1770661111315,500.0,0.00017798,2]
[404897613,1770661111344,500.0,0.00017798,2]
[404897614,1770661111380,500.0,0.00017798,2]
[404897615,1770661111409,500.0,0.00017798,2]
[404897616,1770661111441,500.0,0.00017798,2]
[404897617,1770661111470,500.0,0.00017798,2]
[404897618,1770661111501,284.77593367,0.00017798,2]
[404897619,1770661111554,500.0,0.00017798,2]
[404897620,1770661111714,500.0,0.00017798,2]
[404897621,1770661111767,500.0,0.00017798,2]
[404897622,1770661118558,1662.0,0.00017521,2]
[404897623,1770661122606,223.92674484,0.00017699,2]
[404897624,1770661125240,69.97319823,0.00017798,2]
[404897625,1770661125277,430.02680177,0.00017798,2]
[404897626,1770661125799,284.77593367,0.00017798,2]
[404897627,1770661126142,1662.0,0.00017716,2]
[404897628,1770661130810,1662.0,0.00017566,2]
[404897629,1770661141559,300.0,0.00017798,2]
[404897630,1770661142131,1662.0,0.00017536,2]
[404897631,1770661162855,381.44247186,0.00017798,2]
[404897632,1770661173881,245.26550794,0.00017798,2]
[404897633,1770661173929,500.0,0.00017798,2]
[404897634,1770661174387,2872.49928476,0.00017699,2]
[404897635,1770661174410,3711.02760372,0.00017699,2]
[404897636,1770661178694,500.0,0.00017798,2]
[404897637,1770661178752,215.22406633,0.00017798,2]
[404897638,1770661178788,500.0,0.00017798,2]
[404897639,1770661191298,605.07052918,0.00017699,2]
[404897640,1770661201215,1200.0,0.00017798,2]
[404897641,1770661201243,300.0,0.00017798,2]
[404897642,1770661201860,187.13465239,0.00017798,2]
[404897643,1770661204194,500.0,0.00017,2]
[404897645,1770661204706,319.19,0.00017789,2]
[404897647,1770661204906,319.19,0.00017789,2]
[404897648,1770661205130,319.19,0.00017789,2]
[404897649,1770661205323,319.19,0.00017789,2]
[404897651,1770661205528,319.19,0.00017789,2]
[404897654,1770661206745,685.60314838,0.00017789,2]
[404897655,1770661206771,10000.01,0.00017789,2]
[404897656,1770661206798,8312.43685162,0.00017789,2]
[404897657,1770661207314,1687.57314838,0.00017789,2]
[404897658,1770661207341,10000.01,0.00017789,2]
[404897659,1770661207367,7310.46685162,0.00017789,2]
[404897676,1770661217236,244.43107722,0.00017699,2]
[404897687,1770661232206,201.50510114,0.00017772,2]
[404897688,1770661235232,500.0,0.00017699,2]
[404897689,1770661238905,165.79784277,0.00017798,2]
[404897690,1770661250221,193.66001758,0.00017798,2]
[404897691,1770661261740,550.0,0.00017798,2]
[404897692,1770661264798,196.42863086,0.00017798,2]
[404897693,1770661266583,443.89106758,0.00017798,2]
[404897695,1770661275904,193.82941123,0.00017699,2]
[404897696,1770661275928,10000.01,0.00017699,2]
[404897697,1770661275960,10000.01,0.00017699,2]
[404897698,1770661275986,10000.01,0.00017699,2]
[404897699,1770661276011,5000.01,0.00017699,2]
[404897700,1770661276034,5000.01,0.00017699,2]
[404897701,1770661276057,5000.01,0.00017699,2]
[404897702,1770661276081,5000.01,0.00017699,2]
[404897703,1770661276105,5000.01,0.00017699,2]
[404897704,1770661276127,5000.01,0.00017699,2]
[404897705,1770661276149,5000.01,0.00017699,2]
[404897706,1770661276172,5000.01,0.00017699,2]
[404897707,1770661276201,10000.01,0.00017699,2]
[404897708,1770661276224,10000.01,0.00017699,2]
[404897709,1770661276250,10000.01,0.00017699,2]
[404897710,1770661276274,10000.01,0.00017699,2]
[404897711,1770661276298,10000.01,0.00017699,2]
[404897712,1770661276324,10000.01,0.00017699,2]
[404897713,1770661289381,-300.0,0.00017698,2]
[404897714,1770661293196,3627.337,0.00017345,2]
[404897716,1770661311554,403.3803528,0.00017599,2]
[404897717,1770661314940,250.0,0.00015,2]
[404897719,1770661316064,300.0,0.00017,2]
[404897720,1770661321524,300.0,0.00017698,2]
[404897723,1770661347532,162.95405148,0.00017599,2]
[404897724,1770661352498,310.7237473,0.00017698,2]
[404897725,1770661352535,263.76410633,0.00017698,2]
[404897726,1770661352575,500.0,0.00017698,2]
[404897727,1770661352690,500.0,0.00017698,2]
[404897728,1770661352722,407.24786786,0.00017698,2]
[404897729,1770661355767,500.0,0.00017698,2]
[404897730,1770661355800,356.67133066,0.00017698,2]
[404897731,1770661355828,586.55335149,0.00017698,2]
[404897732,1770661355865,500.0,0.00017698,2]
[404897733,1770661356115,198.30843707,0.00017698,2]
[404897734,1770661363067,233.06975501,0.00017698,2]
[404897735,1770661363091,266.93024499,0.00017698,2]
[404897736,1770661368816,500.0,0.00017698,2]
[404897737,1770661381229,300.0,0.00017698,2]
[404897738,1770661381274,500.0,0.00017698,2]
[404897739,1770661392654,531.38144443,0.00017698,2]
[404897740,1770661408377,1200.0,0.00017698,2]
[404897741,1770661413985,29999.99,0.00034649,30]
[404897742,1770661419240,500.0,0.00017698,2]
[404897743,1770661427339,500.0,0.00017698,2]
[404897744,1770661431667,268.9202352,0.00017599,2]
[404897745,1770661439294,500.0,0.00017698,2]
[404897746,1770661442638,550.0,0.00017698,2]
[404897747,1770661442923,300.0,0.00017698,2]
[404897748,1770661449291,220.21381899,0.00017599,2]
[404897749,1770661455692,3862.56425639,0.00017599,2]
[404897750,1770661455714,1898.02177103,0.00017599,2]
[404897751,1770661458748,500.0,0.00017698,2]
[404897752,1770661461998,509.31183288,0.00017698,2]
[404897753,1770661465057,150.0,0.00017672,2]
[404897754,1770661473329,531.38144443,0.00017698,2]
[404897755,1770661477803,162.95405146,0.00017599,2]
[404897756,1770661481117,1930.243011,0.00017599,2]
[404897757,1770661489490,195.14,0.00030137,30]
[404897758,1770661496182,500.0,0.00017698,2]
[404897759,1770661501197,1200.0,0.00017698,2]
[404897760,1770661501487,187.0,0.00017698,2]
[404897761,1770661502619,151.0,0.00017696,2]
[404897762,1770661503639,500.0,0.00017,2]
[404897764,1770661508411,500.0,0.00017698,2]
[404897770,1770661529812,1280.0978892,0.00017599,2]
[404897771,1770661529836,5448.9149108,0.00017599,2]
[404897775,1770661533348,2167.09463601,8.36e-06,2]
[404897776,1770661537536,500.0,0.00017698,2]
[404897779,1770661551925,179.2801568,0.00017599,2]
[404897780,1770661556570,531.38144443,0.00017698,2]
[404897781,1770661557304,957.63404777,0.00013,2]
[404897782,1770661559483,215.70480419,8e-05,2]
[404897783,1770661559507,10000.01,8e-05,2]
[404897784,1770661559530,3709.04036588,8e-05,2]
[404897785,1770661561209,300.0,0.00017698,2]
[404897786,1770661568962,485.1746138,0.00017599,2]
[404897789,1770661623011,2300.0,0.00015,2]
[404897790,1770661623038,5694.34676251,0.00015,2]
[404897801,1770661632470,5358.19129959,0.0001305,2]
[404897812,1770661658790,810.2,0.00035616,30]
[404897813,1770661679937,-230.0,0.00016199,2]
[404897814,1770661679966,-550.0,0.00016199,2]
[404897815,1770661679994,-300.0,0.00016199,2]
[404897817,1770661707985,1200.0,0.00016199,2]
[404897818,1770661708847,-195.0,0.00016199,2]
[404897819,1770661708878,-196.24403011,0.00016199,2]
[404897820,1770661710026,268.85646745,0.000107,2]
[404897821,1770661710367,-300.0,0.000162,2]
[404897822,1770661710397,-250.0,0.000162,2]
[404897823,1770661714219,-1239.667757,0.000162,5]
[404897824,1770661714232,-5000.01,0.000162,5]
[404897825,1770661714261,-5000.01,0.000162,5]
[404897826,1770661716338,-5000.01,0.000162,5]
[404897827,1770661716447,-5000.01,0.000162,5]
[404897828,1770661716551,-5000.01,0.000162,5]
[404897829,1770661716711,-5000.01,0.000162,5]
[404897830,1770661716776,-5000.01,0.000162,5]
[404897831,1770661716812,7853.2744524,0.0001,2]
[404897832,1770661716923,-5000.01,0.000162,5]
[404897834,1770661719421,-5000.01,0.000162,5]
[404897835,1770661719537,-5000.01,0.000162,5]
[404897836,1770661719650,-5000.01,0.000162,5]
[404897837,1770661735220,211.200441,0.0003561,31]
[404897838,1770661736900,211.200441,0.0003561,31]
[404897839,1770661738540,211.200441,0.0003561,31]
[404897840,1770661739941,211.200441,0.0003561,31]
[404897841,1770661749536,151.0,0.0003561,31]
[404897842,1770661750931,151.0,0.0003561,31]
[404897843,1770661763123,-7983.67410047,0.000162,5]
[404897844,1770661763367,-10000.01,0.000162,5]
[404897845,1770661763520,-10000.01,0.000162,5]
[404897846,1770661763694,-10000.01,0.000162,5]
[404897847,1770661763820,-10000.01,0.000162,5]
[404897848,1770661763967,-1360.30444325,0.000162,5]
[404897849,1770661763992,-7279.4011135,0.000162,5]
[404897857,1770661815928,359.293576,0.00035447,31]
[404897860,1770661817420,359.293576,0.00035447,31]
[404897861,1770661818913,359.293576,0.00035447,31]
[404897864,1770661820631,359.293576,0.00035447,31]
[404897879,1770661831294,-198.93640224,0.0001627,2]
[404897882,1770661831305,-286.0,0.0001627,2]
[404897885,1770661831314,-200.0,0.0001634,2]
[404897888,1770661831324,-195.0,0.00016469,2]
[404897891,1770661831333,-2442.18,0.00016563,2]
[404897893,1770661831342,-361.12707267,0.000166,2]
[404897895,1770661831353,-2257.64,0.0001672,2]
[404897897,1770661831363,-215.28463369,0.00016742,2]
[404897899,1770661831372,-1200.0,0.00016841,2]
[404897901,1770661831381,-300.0,0.00016841,2]
[404897902,1770661831391,-300.0,0.00016842,2]
[404897903,1770661831400,-299.8249884,0.00016842,2]
[404897904,1770661831410,-750.0,0.00016842,2]
[404897906,1770661831419,-300.0,0.00016904,2]
[404897908,1770661831431,-300.0,0.00016904,2]
[404897909,1770661831441,-3382.4253753,0.00016905,2]
[404897910,1770661831453,-6592.1946247,0.00016905,2]